bitfinex/quotes_ETHUSD_20220105
["timestamp","ask_amount","ask_price","bid_price","bid_amount"]
[1641412562726,0.00113685,3651.5,3651.3,0.328]
[1641412562926,0.00113685,3651.5,3651.3,16.078]
[1641412563127,0.00284212,3651.8,3651.4,0.68437]
[1641412563327,0.00284212,3651.8,3651.5,0.328]
[1641412563528,0.0022737,3651.7,3651.5,1.69679]
[1641412563728,0.0022737,3651.7,3651.1,0.00113685]
[1641412564028,0.63584607,3652.7,3651.1,0.00113685]
[1641412564029,0.61845837,3651.5,3651.1,0.00341054]
[1641412564470,0.51072979,3651.4,3651.1,0.00341054]
[1641412564669,0.61845837,3651.5,3651.1,0.00341054]
[1641412564670,1.373596,3651.9,3651.1,0.00341054]
[1641412564965,0.00341054,3652.3,3651.1,0.00341054]
[1641412565366,0.00284211,3652.2,3650.6,14.36092975]
[1641412565566,0.00284211,3652.2,3650.5,0.04317891]
[1641412565567,0.60433384,3651.1,3650.5,0.04317891]
[1641412565768,0.60433384,3651.1,3650.4,0.21887622]
[1641412565769,0.60433384,3651.1,3650.7,0.0022737]
[1641412566167,0.01236318,3651.5,3650.5,0.00341055]
[1641412566468,0.6847724,3651.2,3650.5,0.00341055]
[1641412566668,0.00170527,3651.4,3650.5,0.00341055]
[1641412566868,0.00682108,3652.3,3651.2,1.00747583]
[1641412567072,0.00113684,3651.3,3651.2,1.00747583]
[1641412567268,0.53556414,3652.5,3651.4,3.6]
[1641412567470,1.36914,3652.8,3651.4,3.6]
[1641412567671,0.6845301,3652.1,3651.5,15.75397896]
[1641412567870,1.37019695,3652.4,3651.5,16.43847896]
[1641412568131,0.00113685,3652.4,3651.6,0.00341054]
[1641412568322,0.00113685,3652.4,3651.6,15.75341054]
[1641412568522,1.33384729,3652.5,3651.6,15.75341054]
[1641412568722,1.33384729,3652.5,3651.7,0.00397896]
[1641412568922,0.53209841,3652.2,3651.7,0.00397896]
[1641412569328,0.53209841,3652.2,3651.6,0.00454739]
[1641412569527,0.53209841,3652.2,3650.6,2.19711]
[1641412569528,0.53209841,3652.2,3651.7,0.00397896]
[1641412569732,0.53209841,3652.2,3651.3,0.00625266]
[1641412569931,0.53209841,3652.2,3650.7,0.0096632]
[1641412569932,0.01297125,3651.8,3650.7,0.0096632]
[1641412570129,0.01297125,3651.8,3650.2,0.01250532]
[1641412570330,1.12405144,3650.9,3650.0,0.01364216]
[1641412570529,1.12405144,3650.9,3649.9,0.01421059]
[1641412570530,0.68491,3650.7,3649.9,0.01421059]
[1641412570731,1.37024,3650.5,3649.4,0.0170527]
[1641412570932,1.12405144,3650.9,3649.4,0.0170527]
[1641412571130,0.66849908,3649.9,3649.2,0.01818955]
[1641412571331,0.66849908,3649.9,3649.2,1.25935771]
[1641412571531,0.6850177,3649.8,3649.2,1.24116816]
[1641412571730,0.6850177,3649.8,3649.3,15.76762113]
[1641412571969,1.3700777,3649.8,3649.3,0.01762113]
[1641412572176,1.3700777,3649.8,3649.4,0.0170527]
[1641412572378,1.3700777,3649.8,3648.9,0.01989482]
[1641412572574,45.26005111,3650.4,3649.0,0.328]
[1641412572772,45.26005111,3650.4,3649.5,1.36965]
[1641412572972,45.26005111,3650.4,3649.6,1.01274]
[1641412573175,45.26005111,3650.4,3649.6,0.34391586]
[1641412573375,45.26005111,3650.4,3649.7,1.32001422]
[1641412573574,45.26005111,3650.4,3650.0,15.75]
[1641412573773,45.26005111,3650.4,3650.0,16.078]
[1641412573973,45.26005111,3650.4,3650.2,15.75]
[1641412574377,45.26005111,3650.4,3650.3,0.01193689]
[1641412574576,45.26005111,3650.4,3650.3,0.34003689]
[1641412575377,45.26005111,3650.4,3650.3,24.42474689]
[1641412575632,45.26005111,3650.4,3650.3,26.05981664]
[1641412575832,45.26005111,3650.4,3650.3,26.4059898]
[1641412575833,26.53390111,3650.4,3650.3,26.4059898]
[1641412576030,26.53390111,3650.4,3650.3,27.5315898]
[1641412576031,21.05879111,3650.4,3650.3,27.5315898]
[1641412576231,15.58372111,3650.4,3650.3,28.56108124]
[1641412576433,2.94572111,3650.4,3650.3,28.5331898]
[1641412576634,4.91326497,3652.6,3650.3,28.5331898]
[1641412576635,3.7713,3652.6,3651.6,0.3281]
[1641412576835,7.60622105,3653.1,3652.2,0.3281]
[1641412576836,42.93644543,3652.4,3652.2,0.3281]
[1641412577041,42.93644543,3652.4,3652.3,3.4561]
[1641412577042,42.9136212,3652.4,3652.3,3.4561]
[1641412577241,35.8214812,3652.4,3652.3,3.46893686]
[1641412577435,35.7714812,3652.4,3652.3,20.2452283]
[1641412577645,22.5132812,3652.4,3652.3,20.69149774]
[1641412577835,20.2912812,3652.4,3652.3,22.06636774]
[1641412578035,0.00284212,3652.9,3652.3,22.38556774]
[1641412578236,2.62070288,3653.8,3653.5,0.3281]
[1641412578439,47.32327769,3653.9,3653.8,16.0781]
[1641412578836,1.15050868,3654.1,3653.8,16.0781]
[1641412579236,0.00625266,3654.0,3653.8,16.0781]
[1641412579681,4.05568423,3653.9,3653.8,16.0781]
[1641412579883,4.05568423,3653.9,3653.0,2.36821]
[1641412579884,4.05568423,3653.9,3653.2,0.4457]
[1641412580083,4.05568423,3653.9,3652.4,0.00284212]
[1641412580084,0.68435,3653.6,3652.4,0.00284212]
[1641412580290,7.7,3653.7,3651.4,0.1024]
[1641412580481,0.01296169,3653.1,3651.4,1.0]
[1641412580683,0.69759169,3653.1,3651.8,0.00341054]
[1641412580984,0.00341054,3653.0,3651.8,0.00341054]
[1641412581383,2.62070288,3653.6,3651.6,0.68442]
[1641412581384,0.00284212,3652.9,3651.6,0.68442]
[1641412581583,0.00284212,3652.9,3651.6,0.00454739]
[1641412581781,0.00284212,3652.9,3651.4,0.01238396]
[1641412581782,0.68453,3653.6,3651.7,0.00397896]
[1641412581982,8.94507664,3652.3,3651.1,0.1112]
[1641412582183,8.94507664,3652.3,3650.1,6.30299541]
[1641412582184,0.68472,3651.8,3650.1,6.30299541]
[1641412582382,1.36957,3652.1,3651.2,0.00170527]
[1641412582585,8.27309238,3652.3,3650.1,6.19339541]
[1641412582586,7.7,3651.6,3650.1,6.19339541]
[1641412582787,7.7,3651.6,3650.3,0.00511581]
[1641412582788,8.88491,3651.6,3650.3,0.00511581]
[1641412582984,1.31881508,3651.2,3650.3,15.75511581]
[1641412583223,5.67607769,3650.4,3650.3,0.00511581]
[1641412583423,5.67607769,3650.4,3650.0,6.19339541]
[1641412583822,5.67607769,3650.4,3649.7,0.0014196]
[1641412584225,5.67607769,3650.4,3649.8,1.34857077]
[1641412584429,2.739446,3650.9,3649.8,1.34857077]
[1641412584430,1.36969,3650.9,3649.8,1.34857077]
[1641412584626,3.9957,3651.1,3649.9,15.75738951]
[1641412584826,9.76070574,3652.3,3650.5,15.75]
[1641412585026,3.80940574,3652.3,3650.5,16.078]
[1641412585229,0.00113685,3651.4,3650.7,0.01208148]
[1641412585429,0.00113685,3651.4,3650.8,0.328]
[1641412585627,0.51487398,3651.7,3650.8,0.33027369]
[1641412585827,0.51487398,3651.7,3650.9,15.75170527]
[1641412586026,0.51487398,3651.7,3651.0,0.328]
[1641412586027,0.00227369,3651.6,3651.0,0.328]
[1641412586227,0.00227369,3651.6,3651.0,0.32913685]
[1641412586432,0.00170527,3651.5,3651.1,16.43452]
[1641412586888,0.00113685,3651.4,3651.2,0.4416]
[1641412587075,52.37864102,3652.4,3651.5,15.75]
[1641412587275,52.37864102,3652.4,3651.6,0.328]
[1641412587474,0.00511581,3652.3,3651.7,15.75]
[1641412587674,0.00511581,3652.3,3652.0,1.5]
[1641412587875,0.00454738,3652.2,3652.1,15.75]
[1641412588082,0.00454738,3652.2,3652.1,15.854]
[1641412588278,0.00454738,3652.2,3652.1,16.2052]
[1641412588481,2.7555863,3654.4,3652.1,16.2044]
[1641412588482,3.47178738,3653.9,3652.1,16.2044]
[1641412588680,1.52261996,3654.4,3652.2,3.48374967]
[1641412588882,0.00625266,3653.3,3653.0,1.14821957]
[1641412589183,0.00568424,3653.2,3653.1,0.328]
[1641412589382,0.00568424,3653.2,3653.1,0.4448]
[1641412589581,0.00568424,3653.2,3653.1,16.1924]
[1641412589784,0.00568424,3653.2,3653.1,16.19]
[1641412589982,0.00568424,3653.2,3653.1,16.182]
[1641412590184,7.55568424,3653.2,3652.9,0.1064]
[1641412590388,7.56831038,3653.2,3652.1,0.1096]
[1641412590624,7.56831038,3653.2,3651.9,15.75]
[1641412590625,0.00511581,3653.1,3651.9,15.75]
[1641412591029,7.56262614,3653.2,3651.0,0.00113685]
[1641412591030,0.01201307,3652.4,3652.0,0.00113685]
[1641412591235,0.68469,3652.3,3652.0,3.685e-05]
[1641412591429,0.68469,3652.3,3651.0,3.71643805]
[1641412591430,0.68476,3651.8,3651.0,3.71643805]
[1641412591632,1.3695776,3651.5,3651.0,3.71643805]
[1641412592031,0.00170527,3651.4,3650.4,7.74508045]
[1641412592235,0.00170527,3651.4,3649.9,9.29068517]
[1641412592236,8.06308973,3650.4,3649.9,9.29068517]
[1641412592434,8.06308973,3650.4,3648.8,0.45]
[1641412592435,1.81320401,3650.3,3649.2,7.74269862]
[1641412592634,1.3701478,3650.3,3649.2,7.74269862]
[1641412592834,0.68498,3650.2,3649.8,0.00738951]
[1641412593035,2.71117376,3650.1,3649.8,0.00738951]
[1641412593237,0.012633,3649.9,3649.2,7.74269862]
[1641412593636,0.68517,3649.7,3648.8,0.45]
[1641412593835,0.56771486,3649.1,3648.8,0.45]
[1641412594034,1.25295486,3649.1,3648.9,0.00511581]
[1641412594237,1.20295486,3649.1,3648.9,0.00511581]
[1641412594478,1.20295486,3649.1,3647.2,0.1064]
[1641412594479,0.31082857,3647.8,3647.2,0.1064]
[1641412594680,0.31082857,3647.8,3647.0,0.60549]
[1641412594681,7.7,3647.7,3647.0,0.10549]
[1641412594887,7.7,3647.7,3646.6,0.109176]
[1641412594888,1.37122,3647.6,3646.6,0.109176]
[1641412595085,1.37122,3647.6,3646.0,9.29621569]
[1641412595086,0.5417393,3646.8,3646.0,9.29621569]
[1641412595283,0.1873421,3647.5,3646.0,9.29621569]
[1641412595284,0.68578,3646.5,3646.0,9.29621569]
[1641412596086,0.68578,3646.5,3646.0,3.77010569]
[1641412596284,0.68578,3646.5,3645.7,0.50199979]
[1641412596285,4.68253172,3646.4,3645.7,0.50199979]
[1641412596485,4.68253172,3646.4,3645.0,0.21]
[1641412596486,7.7,3646.3,3645.0,0.21]
[1641412596687,0.68594,3645.8,3645.0,0.21]
[1641412596886,9.0719717,3645.4,3643.3,0.01253294]
[1641412597085,1.37202,3646.0,3643.3,0.01253294]
[1641412597086,2.71117376,3645.3,3643.3,0.01253294]
[1641412597286,7.7,3645.8,3643.0,5.30971722]
[1641412597489,2.66486396,3645.7,3644.0,1.31686896]
[1641412597687,0.58594,3644.9,3644.0,0.81686896]
[1641412598126,2.058,3645.4,3644.0,1.14486896]
[1641412598127,0.00795793,3644.8,3644.0,1.14486896]
[1641412598526,1.371572,3646.2,3644.0,1.14486896]
[1641412598527,1.37158,3645.9,3644.1,6.465]
[1641412598722,2.66856326,3646.1,3644.1,6.46841054]
[1641412598723,0.68572,3646.0,3644.1,6.46841054]
[1641412598923,0.00511582,3645.6,3644.2,0.33084211]
[1641412599324,2.71117376,3646.5,3644.4,1.5]
[1641412599325,0.00454739,3645.5,3644.4,1.5]
[1641412599524,0.00454739,3645.5,3644.5,1.30219897]
[1641412599725,1.80338799,3646.6,3644.5,1.30219897]
[1641412599726,0.00397897,3645.4,3644.6,0.328]
[1641412599929,0.00397897,3645.4,3644.8,0.02629144]
[1641412600126,0.01278974,3647.3,3645.2,8.7]
[1641412600127,1.054e-05,3645.3,3645.2,8.7]
[1641412600325,2.28708272,3648.0,3645.2,9.06457701]
[1641412600528,0.01237135,3648.1,3645.9,2.16437346]
[1641412600729,2.29897446,3648.1,3646.0,16.12117891]
[1641412600927,0.01237135,3648.1,3646.0,16.12117891]
[1641412601130,0.01237135,3648.1,3646.9,1.03186655]
[1641412601327,0.01257193,3647.3,3646.9,1.03186655]
[1641412601726,0.01080005,3647.2,3646.9,1.03186655]
[1641412602179,0.01023163,3647.1,3646.9,1.03186655]
[1641412602479,7.08656452,3647.9,3647.0,1.20954988]
[1641412602686,5.71573982,3647.9,3647.0,1.20954988]
[1641412602882,0.01421059,3647.8,3647.1,15.50305978]
[1641412603082,0.01421059,3647.8,3647.5,0.02629144]
[1641412603281,5.71573982,3647.9,3647.7,7.7]
[1641412603282,4.31748199,3647.9,3647.7,7.7]
[1641412603482,1.15733953,3649.0,3647.9,4.6]
[1641412603686,3.1808,3650.3,3647.9,4.6]
[1641412603687,1.15733953,3649.1,3648.3,0.68493]
[1641412603883,1.15733953,3649.1,3647.9,5.96986]
[1641412603884,0.00682108,3648.9,3648.7,0.58231768]
[1641412604083,0.00682108,3648.9,3648.7,0.328]
[1641412604284,0.00625266,3648.8,3648.7,0.328]
[1641412604686,0.01268123,3649.7,3648.7,0.328]
[1641412605086,0.68511,3649.4,3648.7,0.328]
[1641412605286,0.01223109,3648.9,3648.7,0.328]
[1641412605487,4.55,3648.8,3647.2,0.02629144]
[1641412605725,2.69433327,3648.7,3647.3,0.328]
[1641412605928,2.69433327,3648.7,3647.3,0.3302737]
[1641412605929,2.7000175,3648.7,3647.3,0.3302737]
[1641412606128,1.31717971,3648.1,3647.4,0.00170527]
[1641412606329,1.32989609,3648.1,3647.4,0.00170527]
[1641412606526,1.32989609,3648.1,3647.3,0.0022737]
[1641412606527,0.00170527,3648.0,3647.3,0.0022737]
[1641412606927,0.00113684,3647.9,3647.3,0.0022737]
[1641412607327,0.00170527,3648.0,3647.3,0.0022737]
[1641412607527,0.01207793,3647.6,3646.3,0.00795793]
[1641412607726,4.55,3648.8,3646.3,0.00795793]
[1641412607727,0.00113684,3647.9,3646.3,0.00795793]
[1641412607939,4.5,3647.8,3646.0,0.00227369]
[1641412608127,0.65445195,3648.2,3647.1,1.17907378]
[1641412608328,0.00909478,3647.7,3647.1,1.17907378]
[1641412608526,1.38289812,3648.6,3647.1,1.17907378]
[1641412608527,0.01136847,3648.1,3647.2,15.75]
[1641412608726,0.00852635,3647.6,3647.2,15.75]
[1641412608931,0.01080005,3648.0,3647.4,15.75]
[1641412609126,1.15733953,3649.2,3647.6,15.75]
[1641412609380,1.71783305,3649.2,3647.9,1.20561386]
[1641412609578,0.01705271,3649.1,3647.9,1.53361386]
[1641412609875,0.01648428,3649.0,3647.9,0.328]
[1641412610079,0.01281449,3648.4,3647.9,0.328]
[1641412610479,2.6741228,3649.5,3647.9,0.328]
[1641412610480,0.01250532,3648.3,3647.9,0.328]
[1641412610877,0.0119369,3648.2,3648.0,16.98791906]
[1641412611075,0.0119369,3648.2,3648.1,20.528]
[1641412611279,1.0,3650.5,3648.1,22.8182]
[1641412611280,1.15733953,3650.0,3648.1,22.8182]
[1641412611484,1.15733953,3650.0,3648.5,2.05442]
[1641412611680,1.0,3650.5,3648.5,2.05442]
[1641412611681,0.01875798,3649.4,3649.1,0.5155655]
[1641412611880,1.52261996,3650.1,3649.2,16.078]
[1641412612077,1.52261996,3650.1,3649.3,1.4151057]
[1641412612078,0.00284211,3649.9,3649.3,1.4151057]
[1641412612280,1.52261996,3650.1,3649.6,1.36958]
[1641412612479,1.52261996,3650.1,3649.7,0.328]
[1641412612677,1.52261996,3650.1,3649.7,0.32913684]
[1641412613122,0.5963918,3650.9,3649.7,0.32913684]
[1641412613327,0.13592627,3651.3,3650.1,1.11354619]
[1641412613527,0.00397897,3650.6,3650.2,0.328]
[1641412613827,0.13592627,3651.3,3649.7,0.00113684]
[1641412613828,0.00341054,3650.5,3649.7,0.00113684]
[1641412614229,0.00341054,3650.5,3649.2,1.36991]
[1641412614230,0.13592627,3651.3,3649.9,9.75396]
[1641412614431,0.13592627,3651.3,3650.0,0.328]
[1641412614432,1.0,3651.1,3650.0,0.328]
[1641412614629,0.00397897,3651.2,3650.0,0.33084211]
[1641412614830,1.52261996,3651.7,3650.1,2.80227369]
[1641412615032,0.01284005,3652.0,3650.8,0.68457]
[1641412615033,0.00397897,3651.2,3650.8,0.68457]
[1641412615231,1.52261996,3652.6,3651.1,15.75]
[1641412615232,2.67233006,3652.5,3651.1,15.75]
[1641412615430,1.52261996,3652.6,3651.2,2.38126]
[1641412615630,0.00113684,3652.1,3651.5,2.73716]
[1641412615829,3.06366874,3653.1,3651.6,6.078]
[1641412615830,2.67233006,3653.0,3651.6,6.078]
[1641412616029,3.06366874,3653.1,3652.2,0.6843]
[1641412616231,0.00227369,3652.5,3652.4,1.35186343]
[1641412616429,0.00227369,3652.5,3652.4,1.67986343]
[1641412616633,0.00227369,3652.5,3652.4,0.328]
[1641412616877,7.71524402,3652.5,3652.4,0.00698902]
[1641412617675,0.01524402,3652.5,3652.4,0.00698902]
[1641412617876,0.00227369,3652.5,3652.4,0.00698902]
[1641412618074,0.00227369,3652.5,3651.8,0.328]
[1641412618277,0.00227369,3652.5,3651.9,0.328]
[1641412618474,3.06366874,3653.6,3651.9,0.32913685]
[1641412618475,0.00170527,3652.4,3651.9,0.32913685]
[1641412618675,3.06366874,3653.6,3652.8,0.48572322]
[1641412618877,3.06366874,3653.6,3653.5,1.01218599]
[1641412618878,1.44436874,3653.6,3653.5,1.01218599]
[1641412619081,11.8702485,3655.2,3653.6,7.25]
[1641412619082,1.44436874,3654.2,3653.6,7.25]
[1641412619280,1.44436874,3654.2,3653.9,0.6839]
[1641412619477,1.44436874,3654.2,3654.0,0.328]
[1641412619676,5.03601051,3655.3,3654.1,6.0]
[1641412619876,5.03601051,3655.3,3655.1,1.04761088]
[1641412620080,0.01591586,3655.2,3655.1,1.04761088]
[1641412620277,0.01591586,3655.2,3655.1,1.37561088]
[1641412621531,0.01591586,3655.2,3655.1,0.328]
[1641412621740,0.01591586,3655.2,3653.6,0.68408]
[1641412621932,0.01591586,3655.2,3653.4,0.328]
[1641412622130,0.57266073,3654.8,3653.1,0.68414]
[1641412622329,0.57266073,3654.8,3652.9,1.69629]
[1641412622330,0.01231967,3654.5,3652.9,1.69629]
[1641412622732,0.01136847,3654.4,3652.9,1.69629]
[1641412622932,0.01136847,3654.4,3653.4,0.68413]
[1641412623132,0.01080005,3654.3,3653.6,0.328]
[1641412623533,0.01023162,3654.2,3653.6,0.328]
[1641412623832,1.1538411,3655.0,3653.7,8.08820689]
[1641412624032,1.1538411,3655.0,3654.2,0.68388]
[1641412624234,0.00397897,3654.9,3654.3,1.69563]
[1641412624496,0.00397897,3654.9,3654.3,0.328]
[1641412624692,0.00341054,3654.8,3654.3,0.328]
[1641412625091,0.00284212,3654.7,3654.3,0.328]
[1641412625292,0.00284212,3654.7,3654.3,1.48269199]
[1641412625591,0.00284212,3654.7,3653.8,0.00227369]
[1641412625592,0.0022737,3654.6,3653.8,0.00227369]
[1641412625793,0.0022737,3654.6,3652.4,1.28334111]
[1641412625794,7.7,3654.3,3652.4,0.95534111]
[1641412625991,7.7,3654.3,3653.6,1.054e-05]
[1641412625992,0.0129382,3653.9,3653.6,1.054e-05]
[1641412626192,0.00567369,3654.2,3652.5,2.70679673]
[1641412626392,0.0034,3653.8,3652.5,0.00398951]
[1641412626593,0.00510527,3654.1,3652.6,0.00342108]
[1641412626795,6.70739017,3655.3,3652.4,0.00455793]
[1641412626796,0.01244046,3653.6,3652.4,0.00455793]
[1641412627196,1.25311711,3653.1,3651.8,1.34652313]
[1641412627396,1.25311711,3653.1,3651.9,0.00284212]
[1641412627595,7.70625266,3653.5,3651.9,0.00284212]
[1641412627596,0.00341054,3653.0,3651.9,0.00284212]
[1641412627795,0.00341054,3653.0,3652.5,0.00613833]
[1641412627996,0.00284212,3652.9,3652.5,0.00613833]
[1641412628428,0.00227369,3652.8,3652.5,0.00613833]
[1641412628827,0.00170527,3652.7,3652.5,0.00613833]
[1641412629234,5.55113685,3652.6,3652.5,0.00613833]
[1641412629636,7.70113685,3652.6,3652.5,3.833e-05]
[1641412630235,10.53987034,3652.6,3651.5,0.00511581]
[1641412630434,7.83819997,3652.5,3651.5,1.581e-05]
[1641412630633,7.83819997,3652.5,3649.2,0.95534111]
[1641412630634,0.01239357,3651.8,3649.7,0.01024743]
[1641412630835,0.51935838,3650.5,3649.7,0.01024743]
[1641412631034,0.00112104,3651.7,3650.4,1.04762555]
[1641412631436,0.00112104,3651.7,3650.5,0.00570005]
[1641412631875,0.00112104,3651.7,3650.5,15.75570005]
[1641412632276,2.76807054,3651.7,3651.1,1.06942048]
[1641412632472,0.00112104,3651.7,3651.1,1.06942048]
[1641412632672,0.00112104,3651.7,3651.2,0.00172108]
[1641412633276,8.99204107,3652.5,3651.2,15.75172108]
[1641412633476,8.95602869,3652.5,3651.2,15.75284212]
[1641412633676,0.00397896,3652.4,3652.0,1.38956093]
[1641412633878,2.77748072,3652.4,3651.3,0.0022737]
[1641412634077,0.00341054,3652.3,3651.3,0.0022737]
[1641412634278,0.00341054,3652.3,3651.1,0.00341054]
[1641412634478,0.00284211,3652.2,3650.6,0.00625266]
[1641412634679,0.01559538,3652.2,3650.6,0.00625266]
[1641412634884,1.15188862,3650.9,3650.6,0.00625266]
[1641412635080,7.7,3650.6,3648.7,0.0022737]
[1641412635279,2.69930196,3650.5,3648.7,0.0022737]
[1641412635479,2.70720723,3650.5,3648.7,0.0022737]
[1641412635732,0.00733685,3650.4,3648.7,0.0022737]
[1641412635935,0.53674144,3649.6,3648.7,0.0022737]
[1641412636132,0.00676843,3650.3,3648.7,0.0022737]
[1641412636333,0.00222104,3649.5,3648.7,15.7522737]
[1641412636534,2.69930196,3650.5,3648.7,15.75460005]
[1641412636535,0.0062,3650.2,3648.7,15.75460005]
[1641412636733,0.00165262,3649.4,3648.8,0.00175792]
[1641412636934,2.69930196,3650.5,3648.8,0.00175792]
[1641412636935,0.00563158,3650.1,3648.8,0.00175792]
[1641412637135,0.00108419,3649.3,3648.8,0.00175792]
[1641412637334,7.7,3650.6,3648.8,0.00175792]
[1641412637335,0.00506316,3650.0,3649.5,1.32156588]
[1641412637538,0.00733685,3650.4,3649.5,1.32156588]
[1641412637735,1.1538411,3651.1,3649.6,16.078]
[1641412637736,0.00449473,3649.9,3649.6,16.078]
[1641412637935,0.00676843,3650.3,3649.6,16.078]
[1641412638134,0.13592627,3652.6,3649.7,7.7]
[1641412638135,1.1538411,3651.5,3649.7,7.7]
[1641412638335,1.1538411,3651.5,3650.6,0.64305758]
[1641412638537,1.1538411,3651.5,3651.0,0.68442]
[1641412638736,1.1538411,3651.5,3651.2,15.75]
[1641412639042,1.1538411,3651.5,3651.1,0.328]
[1641412639235,2.69930196,3652.2,3651.1,0.328]
[1641412639676,0.01023162,3651.6,3651.2,15.75]
[1641412639876,0.01023162,3651.6,3651.5,1.05511057]
[1641412640084,1.16594644,3652.4,3651.5,1.05511057]
[1641412640279,0.01210534,3652.4,3651.5,1.05511057]
[1641412640480,0.01307374,3652.1,3651.5,16.80511057]
[1641412640680,0.01307374,3652.1,3651.5,1.05511057]
[1641412640881,0.01250532,3652.0,3651.5,1.05511057]
[1641412641281,0.01250532,3652.0,3650.3,1.3212808]
[1641412641282,0.01193689,3651.9,3650.3,0.328]
[1641412641488,0.01193689,3651.9,3649.6,0.00586196]
[1641412641489,0.01220694,3650.8,3649.6,0.00586196]
[1641412641680,0.01220694,3650.8,3649.6,0.69062196]
[1641412641881,0.00511581,3650.7,3649.6,0.00586196]
[1641412642282,0.00454739,3650.6,3649.6,0.00586196]
[1641412642685,0.00397896,3650.5,3649.6,0.00586196]
[1641412643126,0.00341054,3650.4,3649.6,0.00586196]
[1641412643529,0.00284212,3650.3,3650.1,1.11118278]
[1641412643930,2.69930196,3651.5,3650.2,15.75]
[1641412644232,0.00909478,3651.4,3650.1,1.11118278]
[1641412644428,0.00909478,3651.4,3650.1,16.86118278]
[1641412644630,0.00852635,3651.3,3650.8,1.36071218]
[1641412645030,0.00795793,3651.2,3649.8,0.328]
[1641412645233,0.00795793,3651.2,3650.6,1.0]
[1641412645430,0.00738951,3651.1,3650.6,1.0]
[1641412645830,0.00682108,3651.0,3650.6,1.0]
[1641412646030,0.00682108,3651.0,3649.6,0.00586196]
[1641412646031,0.01893519,3651.0,3649.6,0.00586196]
[1641412646231,0.0123795,3650.1,3649.6,0.00586196]
[1641412646635,0.00113685,3650.0,3649.6,0.00586196]
[1641412647083,0.01228706,3651.2,3649.6,0.00586196]
[1641412647084,0.63408555,3650.1,3649.6,0.00586196]
[1641412647283,0.00682108,3651.0,3649.6,0.00586196]
[1641412647486,0.00113685,3650.0,3649.6,0.00586196]
[1641412647686,0.01236827,3650.3,3649.6,0.00586196]
[1641412648087,0.00227369,3650.2,3649.6,0.00586196]
[1641412648487,8.38215697,3649.7,3649.6,0.00586196]
[1641412648887,8.38215697,3649.7,3649.6,0.00699881]
[1641412649289,8.38215697,3649.7,3647.9,0.4731]
[1641412649290,0.00100119,3649.6,3647.9,0.4731]
[1641412649489,0.00100119,3649.6,3646.6,15.75]
[1641412649490,0.012168,3649.2,3646.6,15.75]
[1641412649689,0.012168,3649.2,3648.0,0.00909477]
[1641412649989,0.59200531,3648.6,3648.0,0.00909477]
[1641412650189,2.65674907,3649.6,3648.4,1.17611572]
[1641412650190,0.54155548,3649.4,3648.4,1.17611572]
[1641412650392,1.06654865,3649.6,3647.9,0.32751499]
[1641412650393,0.63640991,3648.8,3647.9,0.32751499]
[1641412650627,0.13592627,3649.6,3648.5,0.00625265]
[1641412651027,0.13592627,3649.6,3647.9,0.32751499]
[1641412651329,0.6852708,3649.3,3648.1,1.33169288]
[1641412651531,0.13592627,3649.6,3648.1,1.33169288]
[1641412651729,0.13592627,3649.6,3648.2,0.00795792]
[1641412652129,0.13592627,3649.6,3648.2,15.75795792]
[1641412652330,0.00227369,3650.2,3648.3,0.328]
[1641412652630,3.1636,3650.3,3648.3,0.328]
[1641412652631,0.00284212,3650.1,3648.4,15.75682108]
[1641412652829,0.00284212,3650.1,3648.5,0.328]
[1641412653037,1.1538411,3650.8,3649.2,0.48042427]
[1641412653038,0.0022737,3650.0,3649.2,0.48042427]
[1641412653230,0.0022737,3650.0,3649.3,16.078]
[1641412653429,0.00170527,3649.9,3649.3,16.1115808]
[1641412653628,0.00170527,3649.9,3649.4,0.00113684]
[1641412653828,7.0305,3651.7,3649.4,0.00113684]
[1641412653829,1.1538411,3651.5,3649.6,7.7]
[1641412654028,1.1538411,3651.5,3649.7,0.328]
[1641412654029,1.73198743,3651.5,3649.7,0.328]
[1641412654233,0.00511581,3650.7,3649.7,0.328]
[1641412654491,0.00511581,3650.7,3649.4,0.00227369]
[1641412654691,0.00454739,3650.6,3649.4,0.00227369]
[1641412654888,0.00454739,3650.6,3648.8,15.75]
[1641412655094,0.00454739,3650.6,3649.8,1.22640239]
[1641412655097,0.00397896,3650.5,3649.8,1.22640239]
[1641412655393,1.32291819,3651.1,3648.9,0.00511581]
[1641412655394,0.00341054,3650.4,3648.9,0.00511581]
[1641412655794,0.00284212,3650.3,3649.0,15.75]
[1641412656095,0.01290296,3651.1,3649.1,0.33197896]
[1641412656096,0.00227369,3650.2,3649.1,0.33197896]
[1641412656496,0.00170527,3650.1,3649.2,16.29392056]
[1641412656695,0.00170527,3650.1,3649.4,15.75]
[1641412656894,0.00113685,3650.0,3649.5,0.328]
[1641412657094,0.00113685,3650.0,3649.6,1.31907061]
[1641412657295,0.00682108,3651.0,3650.2,1.32662725]
[1641412657495,0.00682108,3651.0,3649.7,0.328]
[1641412657695,0.01290296,3651.1,3649.7,0.328]
[1641412657696,0.00625266,3650.9,3649.7,0.328]
[1641412657898,0.00625266,3650.9,3649.6,0.00113685]
[1641412658130,0.01260879,3650.3,3649.6,0.00113685]
[1641412658329,0.01260879,3650.3,3648.9,0.00511581]
[1641412658526,0.01260879,3650.3,3649.1,1.03903749]
[1641412658527,0.00227369,3650.2,3649.1,1.03903749]
[1641412658926,0.00170527,3650.1,3649.2,0.00341054]
[1641412659328,0.00113685,3650.0,3649.2,15.75341054]
[1641412659628,1.16066218,3651.0,3649.3,0.00284212]
[1641412659829,3.00678304,3650.9,3649.3,0.00284212]
[1641412660030,0.00625266,3650.9,3649.7,1.40878305]
[1641412660229,0.00568424,3650.8,3649.7,1.40878305]
[1641412662280,0.00568424,3650.8,3649.3,0.00807169]
[1641412662481,0.01255161,3650.4,3649.3,0.00807169]
[1641412662680,0.01255161,3650.4,3649.4,0.00227369]
[1641412662885,0.6851066,3649.9,3649.4,0.00227369]
[1641412663289,0.00284212,3650.3,3649.4,0.00227369]
[1641412663290,0.00284212,3650.3,3649.4,1.14322024]
[1641412663587,3.0553042,3650.9,3649.5,0.00170527]
[1641412663588,0.00227369,3650.2,3649.5,0.00170527]
[1641412663987,0.00170527,3650.1,3649.5,0.00170527]
[1641412664386,0.68613685,3650.0,3649.4,0.00227369]
[1641412664788,0.685,3650.0,3649.4,0.00227369]
[1641412664987,1.20106152,3649.6,3649.4,0.00227369]
[1641412665634,0.56039806,3649.9,3649.4,0.00227369]
[1641412665635,0.51039806,3649.9,3649.4,0.00227369]
[1641412666432,0.6850658,3649.8,3649.4,0.00227369]